fUSD/lending_fUSD_20260425
["ID","MTS","AMOUNT","RATE_DAILY","PERIOD"]
[421123138,1777100681045,-71.78576734,0.00012767,2]
[421123139,1777100681056,-500.0,0.00012767,2]
[421123140,1777100681072,-500.0,0.00012767,2]
[421123141,1777100681088,-500.0,0.00012767,2]
[421123142,1777100681104,-500.0,0.00012767,2]
[421123143,1777100681115,-0.01,0.00012767,2]
[421123144,1777100683390,-5000.01,0.00012767,2]
[421123145,1777100686522,-5000.01,0.00012767,2]
[421123146,1777100689443,-5000.01,0.00012767,2]
[421123147,1777100692587,-5000.01,0.00012767,2]
[421123148,1777100695469,-5000.01,0.00012767,2]
[421123149,1777100698634,-5000.01,0.00012767,2]
[421123150,1777100701578,-5000.01,0.00012767,2]
[421123151,1777100704710,-5000.01,0.00012767,2]
[421123152,1777100707563,-5000.01,0.00012767,2]
[421123153,1777100709833,2000.0,0.00012667,2]
[421123154,1777100710722,-5000.01,0.00012767,2]
[421123155,1777100713584,-5000.01,0.00012767,2]
[421123156,1777100717538,-5000.01,0.00012767,2]
[421123157,1777100719720,-5000.01,0.00012767,2]
[421123158,1777100722815,-5000.01,0.00012767,2]
[421123159,1777100725687,-5000.01,0.00012767,2]
[421123161,1777101031484,-150.0,0.00012666,2]
[421123162,1777101031496,-197.8503141,0.00012666,2]
[421123163,1777101031539,-102.1496859,0.00012666,2]
[421123164,1777101031549,-237.01487612,0.00012666,2]
[421123165,1777101031559,-79.58543798,0.00012667,2]
[421123166,1777101031571,-252.80804943,0.00012667,2]
[421123167,1777101031599,-1640.67172989,0.00012667,2]
[421123168,1777101031612,-1794.47750331,0.00012667,2]
[421123169,1777101031624,-284.15203215,0.00012667,2]
[421123170,1777101031636,-1005.3639732,0.00012667,2]
[421123171,1777101031653,-582.4603942,0.00012667,2]
[421123172,1777101031703,-2303.52808282,0.00012667,2]
[421123173,1777101031716,-462.46160238,0.00012667,2]
[421123193,1777101037634,-9522.85600549,0.00012667,2]
[421123194,1777101037647,-1193.48095674,0.00012667,2]
[421123195,1777101037693,-391.5,0.00012667,2]
[421123196,1777101037705,-359.96230042,0.00012667,2]
[421123197,1777101037750,-1722.94122752,0.00012667,2]
[421123198,1777101037762,-1715.08907949,0.00012667,2]
[421123199,1777101037774,-2008.31450221,0.00012667,2]
[421123200,1777101037806,-1979.42774988,0.00012667,2]
[421123201,1777101037916,-866.12932493,0.00012667,2]
[421123202,1777101037972,-2629.73853499,0.00012667,2]
[421123203,1777101039714,-335.38,0.00012667,2]
[421123204,1777101039769,-77491.99999999,0.00012667,2]
[421123205,1777101040199,-297.0302,0.00012667,2]
[421123206,1777101040211,-7210.39503157,0.00012667,2]
[421123207,1777101040223,-13675.71290704,0.00012667,2]
[421123245,1777101042674,-820175.20289941,0.00012667,2]
[421123246,1777101042764,-927.92760438,0.00012667,2]
[421123253,1777101045651,-2793.8764502,0.00012667,2]
[421123254,1777101045738,-4700.58213335,0.00012667,2]
[421123255,1777101046030,-1777.293386,0.00012667,2]
[421123259,1777101111970,-182.66,0.00012414,2]
[421123260,1777101112000,-1527.78,0.00012414,2]
[421123261,1777101112032,-275.5138,0.00012567,2]
[421123262,1777101112065,-151.0,0.00012664,2]
[421123263,1777101112097,-188.48884834,0.00012666,2]
[421123264,1777101112128,-500.0,0.00012666,2]
[421123265,1777101112166,-500.0,0.00012666,2]
[421123266,1777101112197,-500.0,0.00012666,2]
[421123267,1777101112233,-500.0,0.00012666,2]
[421123268,1777101112265,-188.48884834,0.00012666,2]
[421123269,1777101112301,-311.51115166,0.00012666,2]
[421123270,1777101112331,-99.12470332,0.00012667,2]
[421123271,1777101114774,-1152.83999719,0.0001257,2]
[421123272,1777101114804,-150.87529668,0.00012667,2]
[421123273,1777101121215,300.0,0.00012666,2]
[421123274,1777101121447,-2500.01,0.00012667,2]
[421123275,1777101123188,200.10247901,0.00012167,2]
[421123276,1777101124570,-5000.01,0.00012667,2]
[421123277,1777101127391,-5000.01,0.00012667,2]
[421123278,1777101187804,5000.01,7.945e-05,2]
[421123279,1777101191945,-376.58147657,7.945e-05,2]
[421123280,1777101193707,-5000.01,7.945e-05,2]
[421123281,1777101196839,-5000.01,7.945e-05,2]
[421123282,1777101199938,-1535.94346657,7.945e-05,2]
[421123283,1777101199972,-1928.12306686,7.945e-05,2]
[421123284,1777101283873,-152.0,0.00012303,7]
[421123285,1777101283907,-152.0,0.00012303,7]
[421123286,1777101283937,-200.0,0.00012566,2]
[421123287,1777101284055,-6642.78281767,0.00012601,2]
[421123288,1777101287070,-4893.66095997,0.00012601,2]
[421123289,1777101287123,-212.68808006,0.00012601,2]
[421123290,1777101289634,-10000.01,0.00012666,2]
[421123291,1777101292772,-10000.01,0.00012666,2]
[421123292,1777101295883,-10000.01,0.00012666,2]
[421123293,1777101298881,-10000.01,0.00012666,2]
[421123294,1777101311897,5000.01,9.9e-05,2]
[421123295,1777101316601,-5000.01,9.9e-05,2]
[421123296,1777101319756,-5000.01,9.9e-05,2]
[421123297,1777101320913,-10000.01,9.9e-05,2]
[421123298,1777101320928,-1814.86,9.9e-05,2]
[421123299,1777101339879,-10000.01,0.00011,2]
[421123300,1777101348761,-10000.01,0.00011,2]
[421123301,1777101587358,-3185.13,0.00011,2]
[421123302,1777101587387,-3629.75,0.00011,2]
[421123303,1777101587559,-200.0,0.00011,2]
[421123304,1777101587592,-152.0,0.00011845,7]
[421123305,1777101587626,-300.0,0.00011999,2]
[421123306,1777101587699,-8696.01,0.00012,2]
[421123307,1777101593309,-10000.01,0.00012,2]
[421123308,1777101593582,-1881.13,0.00012,2]
[421123309,1777101593609,-6237.75,0.00012,2]
[421123310,1777101596479,-250.0,0.000121,2]
[421123311,1777101596511,-2425.2266132,0.00012515,2]
[421123312,1777101596551,-4649.5567736,0.00012515,2]
[421123313,1777101597219,-1904.8428871,0.0001253,2]
[421123314,1777101597250,-2500.0,0.00012567,2]
[421123315,1777101597316,-1190.3242258,0.00012567,2]
[421123316,1777101597353,-3809.6757742,0.00012567,2]
[421123317,1777101597392,-2380.6584516,0.0001257,2]
[421123318,1777101597503,-10000.01,0.0001257,2]
[421123319,1777101597641,-10000.01,0.0001257,2]
[421123320,1777101597751,-10000.01,0.0001257,2]
[421123321,1777101597869,-10000.01,0.0001257,2]
[421123322,1777101599395,-10000.01,0.0001257,2]
[421123323,1777101599888,-10000.01,0.0001257,2]
[421123324,1777101602443,-4545.41022247,0.0001257,2]
[421123325,1777101602473,-300.0,0.00012639,2]
[421123326,1777101602532,-309.18955506,0.0001264,2]
[421123327,1777101602573,-10000.01,0.0001264,2]
[421123328,1777101602677,-3019.12798624,0.0001264,2]
[421123329,1777101602707,-3961.75402752,0.0001264,2]
[421123330,1777101958209,-150.0,0.00011392,2]
[421123331,1777101958240,-150.0,0.00011392,2]
[421123332,1777101958272,-150.0,0.00011392,2]
[421123333,1777101958304,-150.0,0.00011392,2]
[421123334,1777101958335,-150.0,0.00011507,2]
[421123335,1777101958367,-150.0,0.00011622,2]
[421123336,1777101958399,-150.0,0.00011737,2]
[421123337,1777101958431,-150.0,0.00011852,2]
[421123338,1777101958462,-150.0,0.00011967,2]
[421123339,1777101958495,-150.0,0.00012082,2]
[421123340,1777101958526,-150.0,0.00012197,2]
[421123341,1777101958557,-150.0,0.00012312,2]
[421123342,1777101958590,-152.0,0.00012378,7]
[421123343,1777101958623,-152.0,0.00012378,7]
[421123344,1777101958652,-192.598,0.00012414,2]
[421123345,1777101958934,-406.814,0.00012414,2]
[421123346,1777101961877,-1390.333,0.00012414,2]
[421123347,1777101961908,-150.0,0.00012427,2]
[421123348,1777101961935,-803.47185484,0.00012515,2]
[421123349,1777101961963,-112.40029032,0.00012539,2]
[421123350,1777101962190,-87.59970968,0.00012539,2]
[421123351,1777101982556,1226.57,0.000165,120]
[421123352,1777102064879,-500.0,0.00012278,2]
[421123353,1777102064914,-578.20924308,0.00012414,2]
[421123354,1777102064949,-150.0,0.00012542,2]
[421123355,1777102064982,-1200.0,0.00012566,2]
[421123356,1777102065015,-153.84497308,0.00012566,2]
[421123357,1777102065126,-4835.90156768,0.00012567,2]
[421123358,1777102065153,-10000.01,0.00012567,2]
[421123359,1777102065188,-2230.5275119,0.00012567,2]
[421123360,1777102065213,-5538.9549762,0.00012567,2]
[421123361,1777102065294,-5000.0,0.00012567,2]
[421123362,1777102065336,-0.01,0.0001257,2]
[421123363,1777102065400,-3103.16129342,0.0001257,2]
[421123364,1777102065925,-198.02773617,0.0001264,2]
[421123365,1777102065997,-150.0,0.00012658,2]
[421123366,1777102066030,-150.0,0.00012658,2]
[421123367,1777102066065,-150.0,0.00012658,2]
[421123368,1777102066101,-266.48,0.00012659,2]
[421123369,1777102066132,-200.0,0.0001266,2]
[421123370,1777102066165,-151.0,0.0001266,2]
[421123371,1777102066245,-1328.27659266,0.0001266,2]
[421123372,1777102066276,-670.58624095,0.0001266,2]
[421123373,1777102066308,-151.0,0.0001266,2]
[421123374,1777102066367,-1117.3214852,0.0001266,2]
[421123375,1777102066403,-2234.6429704,0.0001266,2]
[421123376,1777102066443,-4469.2859408,0.0001266,2]
[421123377,1777102066729,-1061.4381184,0.0001266,2]
[421123378,1777102066739,-151.0,0.0001266,2]
[421123379,1777102066749,-151.0,0.0001266,2]
[421123380,1777102066759,-151.0,0.0001266,2]
[421123381,1777102066769,-151.0,0.0001266,2]
[421123382,1777102066779,-151.0,0.0001266,2]
[421123383,1777102066789,-151.0,0.0001266,2]
[421123384,1777102066799,-151.0,0.0001266,2]
[421123385,1777102066809,-151.0,0.0001266,2]
[421123386,1777102066819,-151.0,0.0001266,2]
[421123387,1777102066830,-151.0,0.0001266,2]
[421123388,1777102066840,-151.0,0.0001266,2]
[421123389,1777102066850,-151.0,0.0001266,2]
[421123390,1777102066860,-194.72792766,0.0001266,2]
[421123391,1777102066869,-174.61919141,0.0001266,2]
[421123392,1777102066880,-151.0,0.00012664,2]
[421123393,1777102066890,-4630.60915453,0.00012664,2]
[421123394,1777102066906,-7765.3670296,0.00012664,2]
[421123395,1777102066924,-5530.7240592,0.00012664,2]
[421123396,1777102066992,-846.78024333,0.00012664,2]
[421123397,1777102067026,-3306.44951334,0.00012664,2]
[421123398,1777102067750,-1942.4961759,0.00012666,2]
[421123399,1777102067785,-204.75579528,0.00012666,2]
[421123400,1777102067819,-707.65,0.00012666,2]
[421123401,1777102067889,-4290.20605764,0.00012666,2]
[421123402,1777102067918,-10000.01,0.00012666,2]
[421123403,1777102067973,-10000.01,0.00012666,2]
[421123404,1777102069766,-5000.01,0.00012666,2]
[421123405,1777102070804,-10000.01,0.00012372,2]
[421123406,1777102070938,-10000.01,0.00012372,2]
[421123407,1777102071028,-10000.01,0.00012372,2]
[421123408,1777102071145,-10000.01,0.00012372,2]
[421123409,1777102071272,-10000.01,0.00012372,2]
[421123410,1777102071377,-10000.01,0.00012372,2]
[421123411,1777102071485,-10000.01,0.00012372,2]
[421123412,1777102175832,1013.59045545,0.000165,120]
[421123415,1777102231768,-300.0,0.00012371,2]
[421123416,1777102231779,-1200.0,0.00012371,2]
[421123417,1777102231788,-1571.81881226,0.00012372,2]
[421123418,1777102231800,-15372.30688904,0.00012372,2]
[421123419,1777102231810,-1500000.0,0.00012564,2]
[421123420,1777102231819,-2000.0,0.00012566,2]
[421123421,1777102231829,-1065.6776,0.00012566,2]
[421123422,1777102231838,-5000.0,0.00012567,2]
[421123423,1777102231848,-152.0,0.00012642,7]
[421123424,1777102231858,-55.90394236,0.00012666,2]
[421123425,1777102231868,-9381.7,0.00012666,2]
[421123426,1777102231877,-9999.99,0.00012666,2]
[421123427,1777102231887,-9999.99,0.00012666,2]
[421123428,1777102231898,-150.99,0.00012666,2]
[421123429,1777102231907,-49782.97,0.00012666,2]
[421123430,1777102231917,-999.99,0.00012666,2]
[421123431,1777102231926,-9999.99,0.00012666,2]
[421123432,1777102231936,-4999.99,0.00012666,2]
[421123433,1777102231945,-20047.69,0.00012666,2]
[421123434,1777102231955,-299.99,0.00012666,2]
[421123435,1777102231964,-150.0,0.00012666,2]
[421123436,1777102231974,-1000.0,0.00012666,2]
[421123437,1777102231983,-1108.36696826,0.00012666,2]
[421123438,1777102231993,-151.0,0.00012667,2]
[421123439,1777102232003,-151.0,0.00012667,2]
[421123440,1777102232012,-151.0,0.00012667,2]
[421123441,1777102232022,-152.0,0.00012669,7]
[421123442,1777102232032,-398.93313722,0.00012673,2]
[421123443,1777102232043,-162.24807931,0.00012679,2]
[421123444,1777102232053,-538.61162808,0.0001268,2]
[421123446,1777102232063,-959.6095436,0.000127,4]
[421123448,1777102232074,-1207.0,0.000127,2]
[421123450,1777102232084,-151.397039,0.00012703,2]
[421123452,1777102232094,-9211.34798985,0.00012715,2]
[421123454,1777102232104,-151.0,0.00012715,2]
[421123456,1777102232115,-30564.3493741,0.00012766,2]
[421123458,1777102232126,-1532.0,0.00012767,2]
[421123460,1777102232136,-1543.7258936,0.00012767,2]
[421123462,1777102232147,-1532.0,0.00012767,2]
[421123463,1777102232157,-9552.16786547,0.0001277,2]
[421123464,1777102232167,-151.0,0.0001277,2]
[421123465,1777102232178,-706.0,0.00012792,2]
[421123467,1777102232188,-152.0,0.00012797,7]
[421123469,1777102232198,-151.0,0.00012798,2]
[421123471,1777102232209,-3115.0406301,0.00012801,2]
[421123473,1777102232219,-151.0,0.00012801,2]
[421123474,1777102232229,-151.0,0.00012801,2]
[421123475,1777102232240,-151.0,0.00012801,2]
[421123476,1777102232249,-659.0,0.00012823,2]
[421123478,1777102232260,-3106.57633886,0.00012825,2]
[421123479,1777102232270,-151.0,0.00012825,2]
[421123480,1777102232280,-1223.0,0.00012843,5]
[421123481,1777102232291,-1221.0,0.00012843,5]
[421123482,1777102232301,-761.93,0.00012849,2]
[421123483,1777102232311,-234.24735877,0.00012867,2]
[421123484,1777102232321,-151.0,0.0001287,2]
[421123485,1777102232331,-500.45135727,0.00012873,2]
[421123486,1777102232341,-250.66,0.00012877,2]
[421123487,1777102232350,-242.156,0.00012877,2]
[421123488,1777102232360,-151.0,0.0001288,2]
[421123489,1777102232369,-280.218094,0.000129,2]
[421123490,1777102232379,-266.48,0.00012933,2]
[421123491,1777102232389,-151.0,0.00012935,2]
[421123492,1777102232399,-233.1,0.00012978,2]
[421123493,1777102232408,-2000.0,0.0001298,2]
[421123494,1777102232418,-2000.0,0.0001298,2]
[421123495,1777102232428,-2000.0,0.0001298,2]
[421123496,1777102232438,-2000.0,0.0001298,2]
[421123497,1777102232447,-2000.0,0.0001298,2]
[421123498,1777102232457,-2000.0,0.0001298,2]
[421123499,1777102232467,-1093.83820704,0.00012982,3]
[421123500,1777102232476,-1093.83820704,0.00012982,3]
[421123501,1777102232486,-1093.83820704,0.00012982,3]
[421123502,1777102232496,-1093.83820704,0.00012982,3]
[421123503,1777102232506,-178.84,0.00012987,2]
[421123504,1777102232515,-151.0,0.0001299,2]
[421123505,1777102232525,-2000.0,0.00013,2]
[421123506,1777102232534,-2000.0,0.00013,2]
[421123507,1777102232544,-2000.0,0.00013,2]
[421123508,1777102232554,-250.0,0.00013,2]
[421123509,1777102232563,-500.0,0.00013014,2]
[421123510,1777102232574,-151.0,0.00013045,2]
[421123511,1777102232584,-1093.83820703,0.00013079,3]
[421123512,1777102232593,-151.0,0.000131,2]
[421123513,1777102232604,-26814.9,0.000131,2]
[421123514,1777102232614,-250.0,0.00013129,2]
[421123515,1777102232635,-151.0,0.00013155,2]
[421123516,1777102232654,-518.1316577,0.00013168,2]
[421123517,1777102232670,-500.0,0.00013168,2]
[421123518,1777102232688,-500.0,0.00013168,2]
[421123519,1777102232705,-500.0,0.00013168,2]
[421123520,1777102232724,-507.60294501,0.00013168,2]
[421123521,1777102232741,-500.0,0.00013168,2]
[421123522,1777102232760,-500.0,0.00013168,2]
[421123523,1777102232778,-500.0,0.00013168,2]
[421123524,1777102232795,-500.0,0.00013168,2]
[421123525,1777102232811,-181.9110341,0.00013168,2]
[421123526,1777102232824,-611.08821602,0.00013168,2]
[421123527,1777102232839,-500.0,0.00013168,2]
[421123528,1777102232858,-500.0,0.00013168,2]
[421123529,1777102232875,-331.83192102,0.00013168,2]
[421123530,1777102232891,-463.71993069,0.00013168,2]
[421123531,1777102232908,-500.0,0.00013168,2]
[421123532,1777102232923,-500.0,0.00013168,2]
[421123533,1777102232934,-500.0,0.00013168,2]
[421123534,1777102232950,-336.06535403,0.00013168,2]
[421123535,1777102232964,-500.0,0.00013168,2]
[421123536,1777102232978,-19413.02267407,0.00013169,2]
[421123537,1777102232996,-266.48,0.00013207,2]
[421123538,1777102233010,-200.0,0.00013208,2]
[421123539,1777102233028,-1377.42282659,0.00013208,2]
[421123540,1777102233040,-201.93286099,0.00013208,2]
[421123541,1777102233054,-174.61919142,0.00013208,2]
[421123542,1777102233068,-151.0,0.0001321,2]
[421123543,1777102233092,-151.0,0.00013265,2]
[421123544,1777102233106,-500.0,0.00013288,2]
[421123545,1777102233121,-151.0,0.0001332,2]
[421123546,1777102233136,-153.45764577,0.0001334,2]
[421123547,1777102233151,-1229.0,0.00013389,5]
[421123548,1777102233165,-1000.0,0.00013389,2]
[421123549,1777102233180,-1000.0,0.00013389,2]
[421123550,1777102233195,-1000.0,0.00013389,2]
[421123551,1777102233210,-1000.0,0.00013389,2]
[421123552,1777102233225,-1000.0,0.00013389,2]
[421123553,1777102233240,-1000.0,0.00013389,2]
[421123554,1777102233255,-1000.0,0.00013389,2]
[421123555,1777102233270,-1000.0,0.00013389,2]
[421123556,1777102233285,-839.31911331,0.00013389,2]
[421123557,1777102233304,-160.68088669,0.00013389,2]
[421123558,1777102233319,-1000.0,0.00013389,2]
[421123559,1777102233334,-1000.0,0.00013389,2]
[421123560,1777102233348,-1000.0,0.00013389,2]
[421123561,1777102233363,-1000.0,0.00013389,2]
[421123562,1777102233379,-1000.0,0.00013389,2]
[421123563,1777102233394,-1000.0,0.00013389,2]
[421123564,1777102233409,-1000.0,0.00013389,2]
[421123565,1777102233427,-1000.0,0.00013389,2]
[421123566,1777102233442,-1000.0,0.00013389,2]
[421123567,1777102233457,-1000.0,0.00013389,2]
[421123568,1777102233472,-1000.0,0.00013389,2]
[421123569,1777102233487,-266.48,0.00013481,2]
[421123570,1777102233502,-336.0,0.00013576,2]
[421123571,1777102233517,-44898.60529376,0.00013596,2]
[421123572,1777102233532,-151.0,0.00013596,2]
[421123573,1777102233547,-151.0,0.00013596,2]
[421123574,1777102233562,-237.111328,0.00013596,2]
[421123575,1777102233577,-55425.84041731,0.00013598,2]
[421123576,1777102233596,-4807.67538938,0.00013598,2]
[421123577,1777102233612,-151.0,0.00013598,2]
[421123578,1777102233627,-151.0,0.00013598,2]
[421123579,1777102233641,-155.55325559,0.00013609,2]
[421123580,1777102233656,-572.09413596,0.00013673,2]
[421123581,1777102233671,-503.2111648,0.00013673,2]
[421123582,1777102233687,-500.0,0.00013673,2]
[421123583,1777102233701,-500.22615483,0.00013673,2]
[421123584,1777102233716,-508.83605546,0.00013673,2]
[421123585,1777102233731,-500.0,0.00013673,2]
[421123586,1777102233746,-500.0,0.00013673,2]
[421123587,1777102233760,-500.0,0.00013698,2]
[421123588,1777102233775,-500.0,0.00013698,2]
[421123589,1777102233790,-500.0,0.00013698,2]
[421123590,1777102233804,-500.0,0.00013698,2]
[421123591,1777102233819,-500.0,0.00013698,2]
[421123592,1777102233834,-500.0,0.00013698,2]
[421123593,1777102233848,-500.0,0.00013698,2]
[421123594,1777102233864,-500.0,0.00013698,2]
[421123595,1777102233880,-1385.11,0.00013698,2]
[421123596,1777102233895,-1385.11,0.00013698,2]
[421123597,1777102233910,-1385.11,0.00013698,2]
[421123598,1777102233924,-1385.11,0.00013698,2]
[421123599,1777102233939,-1385.11,0.00013698,2]
[421123600,1777102233954,-1385.11,0.00013698,2]
[421123601,1777102233969,-1385.11,0.00013698,2]
[421123602,1777102233984,-1385.11,0.00013698,2]
[421123603,1777102233999,-2000.0,0.00013699,2]
[421123604,1777102234014,-70038.86,0.000137,2]
[421123605,1777102234029,-386.7,0.000137,2]
[421123606,1777102234045,-151.0,0.000137,2]
[421123607,1777102234059,-266.48876673,0.00013755,2]
[421123608,1777102234074,-1428.38747117,0.00013756,2]
[421123609,1777102234090,-265.63969725,0.00013756,2]
[421123610,1777102234105,-500.0,0.00013768,2]
[421123611,1777102234120,-200.0,0.00013797,2]
[421123612,1777102234135,-200.0,0.00013797,2]
[421123613,1777102234150,-200.0,0.00013797,2]
[421123614,1777102234165,-200.0,0.00013797,2]
[421123615,1777102234180,-200.0,0.00013797,2]
[421123616,1777102234194,-14255.21656915,0.0001399,2]
[421123617,1777102234209,-155.0,0.00014165,2]
[421123618,1777102234224,-539.0,0.00014192,2]
[421123619,1777102234238,-523.68401068,0.00014221,2]
[421123620,1777102234254,-1001.26859123,0.00014221,2]
[421123621,1777102234268,-500.0,0.00014221,2]
[421123622,1777102234284,-791.9265077,0.00014304,2]
[421123623,1777102234299,-1578.5975501,0.00014327,2]
[421123624,1777102234314,-151.0,0.00014328,2]
[421123625,1777102234329,-151.0,0.00014328,2]
[421123626,1777102234345,-19399.8723108,0.00014328,2]
[421123627,1777102234361,-160.0,0.00014425,7]
[421123628,1777102234376,-10882.618138,0.00014425,7]
[421123629,1777102234390,-21605.236277,0.00014425,7]
[421123630,1777102234405,-59428.26,0.00014504,2]
[421123631,1777102234420,-151.0,0.00014579,2]
[421123632,1777102234433,-151.0,0.00014579,2]
[421123633,1777102234448,-500.0,0.0001463,2]
[421123634,1777102234463,-2621.585673,0.00014644,2]
[421123635,1777102234477,-168.0,0.00014696,2]
[421123636,1777102234492,-9358.6448139,0.00014719,2]
[421123637,1777102234506,-352.2327241,0.00014732,2]
[421123638,1777102234521,-4162.62005096,0.00014765,2]
[421123639,1777102234538,-166.07656454,0.00014765,2]
[421123640,1777102234552,-168.0,0.00014829,2]
[421123641,1777102234567,-6819.8281706,0.00014836,2]
[421123642,1777102234580,-160.0,0.00014843,7]
[421123643,1777102234595,-2224.61046,0.00014843,7]
[421123644,1777102234609,-4289.22092,0.00014843,7]
[421123645,1777102234623,-196.29,0.00014861,2]
[421123646,1777102234637,-176.68,0.00014861,2]
[421123647,1777102234651,-168.0,0.0001491,2]
[421123648,1777102234665,-300.0,0.00015,2]
[421123649,1777102234679,-160.0,0.00015,2]
[421123650,1777102234692,-168.0,0.00015001,2]
[421123651,1777102234705,-155.0887408,0.00015068,2]
[421123652,1777102234719,-584.954831,0.000151,2]
[421123653,1777102234732,-241.468319,0.00015146,2]
[421123654,1777102234746,-14839.933825,0.00015146,7]
[421123655,1777102234760,-599.60298507,0.00015153,2]
[421123656,1777102234774,-8167.69802264,0.00015155,2]
[421123657,1777102234789,-2088.1959161,0.00015178,2]
[421123658,1777102234803,-325.0,0.00015199,2]
[421123659,1777102234817,-325.0,0.00015224,2]
[421123660,1777102234831,-325.0,0.00015227,2]
[421123661,1777102234844,-411.0,0.0001523,2]
[421123662,1777102234858,-325.0,0.00015234,2]
[421123663,1777102234872,-168.0,0.00015258,2]
[421123664,1777102234885,-225.3609749,0.00015265,2]
[421123665,1777102234900,-244.0,0.00015268,2]
[421123666,1777102234913,-325.0,0.00015272,2]
[421123667,1777102234927,-325.0,0.00015277,2]
[421123668,1777102234942,-325.0,0.00015278,2]
[421123669,1777102234955,-325.0,0.00015284,2]
[421123670,1777102234969,-1521.7093519,0.00015297,2]
[421123671,1777102234983,-325.0,0.00015305,2]
[421123672,1777102234998,-319.0,0.00015328,2]
[421123673,1777102235012,-325.0,0.00015337,2]
[421123674,1777102235030,-325.0,0.00015339,2]
[421123675,1777102235045,-325.0,0.00015356,2]
[421123676,1777102235059,-325.0,0.00015357,2]
[421123677,1777102235073,-325.0,0.0001538,2]
[421123678,1777102235087,-168.68,0.00015384,2]
[421123679,1777102235101,-695.39793187,0.00015399,2]
[421123680,1777102235116,-325.0,0.00015424,2]
[421123681,1777102235130,-500.0,0.00015424,2]
[421123682,1777102235144,-500.0,0.00015424,2]
[421123683,1777102235158,-500.0,0.00015424,2]
[421123684,1777102235172,-478.37697268,0.00015424,2]
[421123685,1777102235186,-325.0,0.0001543,2]
[421123686,1777102235200,-500.0,0.00015462,2]
[421123687,1777102235215,-1385.11,0.00015462,2]
[421123688,1777102235228,-1000.0,0.00015463,2]
[421123689,1777102235243,-1000.0,0.00015463,2]
[421123690,1777102235258,-1000.0,0.00015463,2]
[421123691,1777102235271,-1000.0,0.00015463,2]
[421123692,1777102235286,-1000.0,0.00015463,2]
[421123693,1777102235300,-1000.0,0.00015463,2]
[421123694,1777102235314,-1000.0,0.00015463,2]
[421123695,1777102235329,-1000.0,0.00015463,2]
[421123696,1777102235343,-1000.0,0.00015463,2]
[421123697,1777102235357,-1000.0,0.00015463,2]
[421123698,1777102235371,-1000.0,0.00015463,2]
[421123699,1777102235384,-1000.0,0.00015463,2]
[421123700,1777102235397,-1000.0,0.00015463,2]
[421123701,1777102235410,-1000.0,0.00015463,2]
[421123702,1777102235424,-1000.0,0.00015463,2]
[421123703,1777102235438,-661.66802301,0.00015463,2]
[421123704,1777102235451,-151.0,0.00015474,2]
[421123705,1777102235464,-151.0,0.00015474,2]
[421123706,1777102235477,-4550.339577,0.00015586,7]
[421123707,1777102235490,-67365.66445701,0.000156,2]
[421123708,1777102235507,-300.0,0.000156,2]
[421123709,1777102235529,-1351.1837267,0.000156,2]
[421123710,1777102238029,-225.60961886,0.00012563,2]
[421123711,1777102238040,-416.22662903,0.00012563,2]
[421123712,1777102238051,-162.28629964,0.00013699,2]
[421123713,1777102238060,-12.50252068,0.000156,2]
[421123714,1777102238257,-1009.50929561,0.000156,2]
[421123715,1777102238267,-386.7,0.000156,2]
[421123716,1777102238277,-151.0,0.000156,2]
[421123717,1777102238287,-151.0,0.000156,2]
[421123718,1777102238296,-1190.0,0.000156,2]
[421123719,1777102238307,-151.758,0.00015607,2]